[Event "European Women Rapid-ch 2023"]
[Site "Monaco"]
[Date "2024.01.13"]
[Round "1.17"]
[White "Osmak, Yuliia"]
[Black "Pribylova, Sofie"]
[Result "1-0"]
[ECO "B51"]
[WhiteElo "2450"]
[BlackElo "1945"]
[Annotator "RC"]
[PlyCount "115"]
[EventDate "2023.12.19"]
[EventType "swiss"]
[EventCountry "MNC"]
[SourceTitle "playchess.com"]
[Source "ChessBase"]
[SourceQuality "1"]
[TimeControl "900+10"]

1. e4 {[%emt 0:00:01]} c5 {[%emt 0:00:02]} 2. Nf3 {[%emt 0:00:02]} d6 {[%emt 0:00:02]} 3. Bb5+ {[%emt 0:00:02]} Nd7 {[%emt 0:01:43]} 4. a4 {[%emt 0:00:03]} Ngf6 {[%emt 0:00:19]} 5. Nc3 {[%emt 0:00:02]} e6 {[%emt 0:01:00]} 6. d4 {[%emt 0:00:36]} cxd4 {[%emt 0:00:03]} 7. Qxd4 {[%emt 0:00:02]} Be7 {[%emt 0:01:18]} 8. O-O {[%emt 0:00:09]} O-O {[%emt 0:00:10]} 9. Bg5 {[%emt 0:00:59]} a6 {[%emt 0:01:37]} 10. Be2 {[%emt 0:00:38]} b6 {[%emt 0:00:33]} 11. Nd2 {[%emt 0:02:34]} Bb7 {[%emt 0:04:18]} 12. Nc4 {[%emt 0:00:18]} Nxe4 {[%emt 0:02:12]} 13. Nxe4 {[%emt 0:00:38]} Bxe4 {[%emt 0:00:27]} 14. Bxe7 {[%emt 0:01:26]} Qxe7 {[%emt 0:00:04]} 15. Nxb6 {[%emt 0:00:39]} Nxb6 {[%emt 0:00:52]} 16. Qxe4 {[%emt 0:00:03]} d5 {[%emt 0:00:36]} 17. Qd4 {[%emt 0:00:31]} Qc7 {[%emt 0:00:09]} 18. a5 {[%emt 0:01:34]} Nc4 {[%emt 0:00:29]} 19. Qc3 {[%emt 0:01:47]} Rfc8 {[%emt 0:00:18]} 20. Rfc1 {[%emt 0:00:49]} Qb7 {[%emt 0:00:30]} 21. b3 {[%emt 0:00:25]} Nd6 {[%emt 0:00:21]} 22. Qe3 {[%emt 0:00:17]} Rab8 {[%emt 0:00:59]} 23. Bd3 {[%emt 0:00:19]} g6 {[%emt 0:00:04]} 24. h4 {[%emt 0:00:12]} h5 {[%emt 0:00:14]} 25. Bxg6 {[%emt 0:00:36]} fxg6 {[%emt 0:00:06]} 26. Qxe6+ {[%emt 0:00:01]} Nf7 {[%emt 0:00:04]} 27. Qxg6+ {[%emt 0:00:02]} Kf8 {[%emt 0:00:06]} 28. Qxh5 {[%emt 0:00:05]} Re8 {[%emt 0:00:35]} 29. Rd1 {[%emt 0:00:14]} Rbd8 {[%emt 0:00:19]} 30. Ra4 {[%emt 0:00:34]} Re5 {[%emt 0:00:02]} 31. Qg6 {[%emt 0:00:23]} Rd6 {[%emt 0:00:18]} 32. Qg3 {[%emt 0:00:11]} Rde6 {[%emt 0:00:15]} 33. Kh2 {[%emt 0:00:32]} Qe7 {[%emt 0:01:05]} 34. Rf4 {[%emt 0:00:48]} Rf6 {[%emt 0:00:00]} 35. Rdd4 {[%emt 0:00:31]} Rxf4 {[%emt 0:00:00]} 36. Rxf4 {[%emt 0:00:01]} Rh5 {[%emt 0:00:00]} 37. Rg4 {[%emt 0:00:19]} Qe5 {[%emt 0:00:00]} 38. f4 {[%emt 0:00:11]} Qe6 {[%emt 0:00:07]} 39. Rg8+ {[%emt 0:00:19]} Ke7 {[%emt 0:00:00]} 40. Qf2 {[%emt 0:00:08]} Rh8 {[%emt 0:00:16]} 41. Qa7+ {[%emt 0:01:09]} Qd7 {[%emt 0:00:02]} 42. Qxd7+ {[%emt 0:00:06]} Kxd7 {[%emt 0:00:02]} 43. Rxh8 {[%emt 0:00:02]} Nxh8 {[%emt 0:00:01]} 44. g4 {[%emt 0:00:05]} Ke6 {[%emt 0:00:24]} 45. h5 {[%emt 0:00:07]} Nf7 {[%emt 0:00:06]} 46. Kg3 {[%emt 0:00:13]} d4 {[%emt 0:00:04]} 47. Kf3 {[%emt 0:00:07]} Kd5 {[%emt 0:00:29]} 48. g5 {[%emt 0:00:04]} Ke6 {[%emt 0:00:12]} 49. Ke4 {[%emt 0:00:08]} Nd6+ {[%emt 0:00:05]} 50. Kxd4 {[%emt 0:00:03]} Kf5 {[%emt 0:00:01]} 51. h6 {[%emt 0:00:13]} Nf7 {[%emt 0:00:17]} 52. h7 {[%emt 0:00:23]} Nh8 {[%emt 0:00:12]} 53. Kc5 {[%emt 0:00:09]} Kxf4 {[%emt 0:00:04]} 54. Kb6 {[%emt 0:00:01]} Kxg5 {[%emt 0:00:04]} 55. Kxa6 {[%emt 0:00:00]} Kg6 {[%emt 0:00:02]} 56. Kb7 {[%emt 0:00:03]} Kxh7 {[%emt 0:00:03]} 57. a6 {[%emt 0:00:00]} Nf7 {[%emt 0:00:11]} 58. a7 {[%emt 0:00:02]} 1-0

[Event "European Women Rapid-ch 2023"]
[Site "Monaco"]
[Date "2024.01.13"]
[Round "1.18"]
[White "Bacrot, Nathalie"]
[Black "Guichard, Pauline"]
[Result "0-1"]
[ECO "A38"]
[WhiteElo "1968"]
[BlackElo "2385"]
[Annotator "RC"]
[PlyCount "54"]
[EventDate "2023.12.19"]
[EventType "swiss"]
[EventCountry "MNC"]
[SourceTitle "playchess.com"]
[Source "ChessBase"]
[SourceQuality "1"]
[TimeControl "900+10"]

1. Nf3 {[%emt 0:00:03]} Nf6 {[%emt 0:00:02]} 2. g3 {[%emt 0:00:05]} g6 {[%emt 0:00:04]} 3. Bg2 {[%emt 0:00:02]} Bg7 {[%emt 0:00:02]} 4. O-O {[%emt 0:00:02]} O-O {[%emt 0:00:02]} 5. c4 {[%emt 0:00:01]} c5 {[%emt 0:00:07]} 6. Nc3 {[%emt 0:00:55]} d5 {[%emt 0:00:51]} 7. cxd5 {[%emt 0:02:31]} Nxd5 {[%emt 0:00:03]} 8. Nxd5 {[%emt 0:00:01]} Qxd5 {[%emt 0:00:02]} 9. d3 {[%emt 0:00:01]} Nc6 {[%emt 0:00:54]} 10. a3 {[%emt 0:04:26]} Qh5 {[%emt 0:01:16]} 11. Re1 {[%emt 0:00:30]} Bg4 {[%emt 0:00:15]} 12. Rb1 {[%emt 0:01:09]} Rfd8 {[%emt 0:00:49]} 13. Qa4 {[%emt 0:02:17]} Rac8 {[%emt 0:03:43]} 14. b4 {[%emt 0:01:16]} Nd4 {[%emt 0:02:41]} 15. Nxd4 {[%emt 0:00:15]} cxd4 {[%emt 0:00:02]} 16. Rb2 {[%emt 0:00:26]} b5 {[%emt 0:00:48]} 17. Qxa7 {[%emt 0:01:59]} Rd7 {[%emt 0:00:04]} 18. Bb7 {[%emt 0:00:06]} Rdc7 {[%emt 0:02:22]} 19. Bd2 {[%emt 0:00:02]} h6 {[%emt 0:02:37]} 20. Qb6 {[%emt 0:00:42]} Rc2 {[%emt 0:00:01]} 21. Bxc8 {[%emt 0:00:37]} Rxb2 {[%emt 0:00:02]} 22. Bxg4 {[%emt 0:00:01]} Qxg4 {[%emt 0:00:01]} 23. Qb8+ {[%emt 0:00:02]} Kh7 {[%emt 0:00:16]} 24. Qf4 {[%emt 0:00:01]} Qe6 {[%emt 0:00:07]} 25. e4 {[%emt 0:01:25]} Qb3 {[%emt 0:00:39]} 26. Bc1 {[%emt 0:00:09]} Rc2 {[%emt 0:00:15]} 27. Qxf7 {[%emt 0:00:11]} Qxf7 {[%emt 0:00:11]} 0-1

[Event "European Women Rapid-ch 2023"]
[Site "Monaco"]
[Date "2024.01.13"]
[Round "1.19"]
[White "Savina, Anastasia"]
[Black "Guillo Longares, Cecilia"]
[Result "1-0"]
[ECO "A65"]
[WhiteElo "2340"]
[BlackElo "2096"]
[Annotator "ChessBase"]
[PlyCount "117"]
[EventDate "2023.12.19"]
[EventType "swiss"]
[EventCountry "MNC"]
[SourceTitle "playchess.com"]
[Source "ChessBase"]
[SourceQuality "1"]
[TimeControl "900+10"]

1. d4 {[%emt 0:00:03]} Nf6 {[%emt 0:00:01]} 2. c4 {[%emt 0:00:02]} c5 {[%emt 0:00:01]} 3. d5 {[%emt 0:00:04]} g6 {[%emt 0:00:02]} 4. Nc3 {[%emt 0:00:03]} d6 {[%emt 0:00:02]} 5. e4 {[%emt 0:00:48]} Bg7 {[%emt 0:00:02]} 6. f3 {[%emt 0:00:23]} O-O {[%emt 0:00:05]} 7. Bg5 {[%emt 0:00:03]} h6 {[%emt 0:00:56]} 8. Be3 {[%emt 0:00:04]} e6 {[%emt 0:00:17]} 9. Qd2 {[%emt 0:00:06]} Kh7 {[%emt 0:00:04]} 10. Nge2 {[%emt 0:00:29]} exd5 {[%emt 0:00:49]} 11. cxd5 {[%emt 0:00:03]} Nbd7 {[%emt 0:00:27]} 12. Ng3 {[%emt 0:00:42]} Ne5 {[%emt 0:00:45]} 13. Be2 {[%emt 0:00:10]} Rb8 {[%emt 0:00:08]} 14. a4 {[%emt 0:00:27]} b6 {[%emt 0:00:29]} 15. O-O {[%emt 0:00:16]} a6 {[%emt 0:00:05]} 16. h3 {[%emt 0:00:54]} Ne8 {[%emt 0:01:40]} 17. Rab1 {[%emt 0:02:11]} Qh4 {[%emt 0:02:14]} 18. Bf2 {[%emt 0:00:22]} Qf6 {[%emt 0:00:02]} 19. f4 {[%emt 0:01:29]} Nd7 {[%emt 0:00:05]} 20. Kh1 {[%emt 0:01:57]} Nc7 {[%emt 0:00:35]} 21. Rbd1 {[%emt 0:02:55]} Qd8 {[%emt 0:02:43]} 22. e5 {[%emt 0:01:28]} dxe5 {[%emt 0:00:13]} 23. f5 {[%emt 0:00:08]} Ne8 {[%emt 0:01:20]} 24. Bd3 {[%emt 0:01:12]} Nd6 {[%emt 0:00:41]} 25. fxg6+ {[%emt 0:00:18]} fxg6 {[%emt 0:00:02]} 26. Qc2 {[%emt 0:00:17]} Qe8 {[%emt 0:00:28]} 27. Nce4 {[%emt 0:00:43]} Nxe4 {[%emt 0:01:51]} 28. Nxe4 {[%emt 0:00:02]} Qe7 {[%emt 0:01:04]} 29. Qe2 {[%emt 0:01:33]} Nf6 {[%emt 0:00:21]} 30. Bh4 {[%emt 0:00:03]} Bf5 {[%emt 0:00:21]} 31. d6 {[%emt 0:00:30]} Qe8 {[%emt 0:00:47]} 32. Nxf6+ {[%emt 0:00:16]} Bxf6 {[%emt 0:00:02]} 33. Bxf6 {[%emt 0:00:03]} Rxf6 {[%emt 0:00:04]} 34. Bxf5 {[%emt 0:00:20]} gxf5 {[%emt 0:00:12]} 35. d7 {[%emt 0:00:05]} Qe7 {[%emt 0:00:16]} 36. Qd3 {[%emt 0:00:11]} Rd8 {[%emt 0:00:29]} 37. Rxf5 {[%emt 0:00:03]} Kg7 {[%emt 0:00:06]} 38. Qg3+ {[%emt 0:00:13]} Rg6 {[%emt 0:00:02]} 39. Qxe5+ {[%emt 0:00:10]} Qxe5 {[%emt 0:00:08]} 40. Rxe5 {[%emt 0:00:02]} Kf7 {[%emt 0:00:06]} 41. a5 {[%emt 0:00:28]} bxa5 {[%emt 0:00:54]} 42. Rxc5 {[%emt 0:00:07]} Ke7 {[%emt 0:00:01]} 43. Rcd5 {[%emt 0:00:23]} Re6 {[%emt 0:00:10]} 44. Kh2 {[%emt 0:00:12]} a4 {[%emt 0:00:06]} 45. R1d2 {[%emt 0:00:03]} Re3 {[%emt 0:00:27]} 46. R5d4 {[%emt 0:00:14]} Re6 {[%emt 0:00:26]} 47. h4 {[%emt 0:00:09]} Rg6 {[%emt 0:00:35]} 48. Kh3 {[%emt 0:00:07]} Re6 {[%emt 0:00:14]} 49. g3 {[%emt 0:00:07]} Rf6 {[%emt 0:00:07]} 50. h5 {[%emt 0:00:11]} Re6 {[%emt 0:00:06]} 51. Kh4 {[%emt 0:00:02]} Rf6 {[%emt 0:00:05]} 52. g4 {[%emt 0:00:13]} Re6 {[%emt 0:00:05]} 53. R2d3 {[%emt 0:00:23]} Rb6 {[%emt 0:00:12]} 54. Re3+ {[%emt 0:00:08]} Kf7 {[%emt 0:00:23]} 55. Rd2 {[%emt 0:00:08]} Rb7 {[%emt 0:00:11]} 56. Red3 {[%emt 0:00:14]} Ke7 {[%emt 0:00:04]} 57. Re2+ {[%emt 0:00:01]} Kf7 {[%emt 0:00:00]} 58. Rf3+ {[%emt 0:00:02]} Kg7 {[%emt 0:00:05]} 59. Re7+ {[%emt 0:00:02]} 1-0

[Event "European Women Rapid-ch 2023"]
[Site "Monaco"]
[Date "2024.01.13"]
[Round "1.20"]
[White "Cornileau, Juliette"]
[Black "Zhukova, Natalia"]
[Result "0-1"]
[ECO "D36"]
[WhiteElo "2007"]
[BlackElo "2301"]
[Annotator "RC"]
[PlyCount "82"]
[EventDate "2023.12.19"]
[EventType "swiss"]
[EventCountry "MNC"]
[SourceTitle "playchess.com"]
[Source "ChessBase"]
[SourceQuality "1"]
[TimeControl "900+10"]

1. d4 {[%emt 0:00:01]} Nf6 {[%emt 0:00:03]} 2. c4 {[%emt 0:00:02]} e6 {[%emt 0:00:03]} 3. Nc3 {[%emt 0:00:02]} d5 {[%emt 0:00:17]} 4. cxd5 {[%emt 0:00:02]} exd5 {[%emt 0:00:02]} 5. Bg5 {[%emt 0:00:02]} c6 {[%emt 0:00:03]} 6. Qc2 {[%emt 0:00:18]} Bd6 {[%emt 0:00:08]} 7. e3 {[%emt 0:00:07]} O-O {[%emt 0:00:06]} 8. Bd3 {[%emt 0:00:02]} h6 {[%emt 0:00:03]} 9. Bh4 {[%emt 0:00:02]} Re8 {[%emt 0:00:09]} 10. Nge2 {[%emt 0:00:02]} a5 {[%emt 0:00:05]} 11. O-O {[%emt 0:00:18]} Bxh2+ {[%emt 0:00:24]} 12. Kh1 {[%emt 0:00:12]} Bd6 {[%emt 0:00:36]} 13. e4 {[%emt 0:02:22]} dxe4 {[%emt 0:00:13]} 14. Nxe4 {[%emt 0:00:04]} Be7 {[%emt 0:00:12]} 15. Bg3 {[%emt 0:01:46]} Na6 {[%emt 0:03:43]} 16. a3 {[%emt 0:00:11]} Nxe4 {[%emt 0:00:07]} 17. Bxe4 {[%emt 0:00:04]} Nc7 {[%emt 0:00:06]} 18. Nf4 {[%emt 0:04:14]} Bd6 {[%emt 0:01:34]} 19. Kg1 {[%emt 0:00:44]} Ne6 {[%emt 0:01:01]} 20. Nxe6 {[%emt 0:01:50]} Bxe6 {[%emt 0:00:03]} 21. f4 {[%emt 0:00:17]} Qb6 {[%emt 0:02:23]} 22. Bf2 {[%emt 0:00:21]} Bd5 {[%emt 0:00:36]} 23. Bxd5 {[%emt 0:02:06]} cxd5 {[%emt 0:00:02]} 24. Rae1 {[%emt 0:00:02]} Bxf4 {[%emt 0:06:00]} 25. Qf5 {[%emt 0:01:08]} Qd6 {[%emt 0:00:15]} 26. Rxe8+ {[%emt 0:00:47]} Rxe8 {[%emt 0:00:01]} 27. Bg3 {[%emt 0:00:59]} Be3+ {[%emt 0:00:07]} 28. Kh2 {[%emt 0:00:01]} Qe6 {[%emt 0:00:10]} 29. Qf3 {[%emt 0:01:30]} Bxd4 {[%emt 0:00:09]} 30. Re1 {[%emt 0:00:14]} Qd7 {[%emt 0:00:01]} 31. Rd1 {[%emt 0:00:11]} Re4 {[%emt 0:00:37]} 32. b4 {[%emt 0:00:18]} axb4 {[%emt 0:00:07]} 33. axb4 {[%emt 0:00:00]} Qe6 {[%emt 0:00:18]} 34. Qd3 {[%emt 0:00:14]} Be5 {[%emt 0:00:17]} 35. Bxe5 {[%emt 0:00:15]} Qxe5+ {[%emt 0:00:01]} 36. Kg1 {[%emt 0:00:06]} Rxb4 {[%emt 0:00:11]} 37. Qh3 {[%emt 0:00:10]} Qe6 {[%emt 0:00:23]} 38. Qa3 {[%emt 0:00:09]} Qb6+ {[%emt 0:00:06]} 39. Kh2 {[%emt 0:00:15]} Rh4+ {[%emt 0:00:05]} 40. Kg3 {[%emt 0:00:01]} Qf6 {[%emt 0:00:14]} 41. Qe3 {[%emt 0:00:19]} Re4 {[%emt 0:00:06]} 0-1

[Event "European Women Rapid-ch 2023"]
[Site "Monaco"]
[Date "2024.01.13"]
[Round "1.21"]
[White "Bensdorp-De Labaca, Marlies"]
[Black "Prochaieva, Alina"]
[Result "1-0"]
[ECO "E16"]
[WhiteElo "2237"]
[BlackElo "1974"]
[Annotator "RC"]
[PlyCount "103"]
[EventDate "2023.12.19"]
[EventType "swiss"]
[EventCountry "MNC"]
[SourceTitle "playchess.com"]
[Source "ChessBase"]
[SourceQuality "1"]
[TimeControl "900+10"]

1. d4 {[%emt 0:00:03]} Nf6 {[%emt 0:00:02]} 2. c4 {[%emt 0:00:01]} e6 {[%emt 0:00:02]} 3. Nf3 {[%emt 0:00:02]} b6 {[%emt 0:00:02]} 4. g3 {[%emt 0:00:01]} Bb7 {[%emt 0:00:04]} 5. Bg2 {[%emt 0:00:02]} Bb4+ {[%emt 0:00:06]} 6. Nbd2 {[%emt 0:00:01]} O-O {[%emt 0:00:27]} 7. O-O {[%emt 0:00:03]} Bxd2 {[%emt 0:00:33]} 8. Bxd2 {[%emt 0:00:03]} d6 {[%emt 0:00:18]} 9. b4 {[%emt 0:01:34]} c5 {[%emt 0:00:43]} 10. bxc5 {[%emt 0:00:48]} bxc5 {[%emt 0:00:31]} 11. dxc5 {[%emt 0:00:36]} dxc5 {[%emt 0:00:02]} 12. Be3 {[%emt 0:00:07]} Nbd7 {[%emt 0:01:30]} 13. Rb1 {[%emt 0:00:22]} Be4 {[%emt 0:00:46]} 14. Rb5 {[%emt 0:00:08]} a6 {[%emt 0:00:06]} 15. Rb2 {[%emt 0:00:03]} Qa5 {[%emt 0:00:32]} 16. Qc1 {[%emt 0:01:29]} Rab8 {[%emt 0:01:20]} 17. Bf4 {[%emt 0:00:24]} Rxb2 {[%emt 0:00:33]} 18. Qxb2 {[%emt 0:00:02]} Qa4 {[%emt 0:00:22]} 19. Rc1 {[%emt 0:00:56]} Qc6 {[%emt 0:01:00]} 20. Rc3 {[%emt 0:00:34]} Rd8 {[%emt 0:01:38]} 21. h3 {[%emt 0:02:02]} h6 {[%emt 0:00:04]} 22. Rb3 {[%emt 0:00:02]} Nh5 {[%emt 0:00:57]} 23. Bd2 {[%emt 0:00:52]} Qc7 {[%emt 0:01:16]} 24. Kh2 {[%emt 0:02:08]} Nhf6 {[%emt 0:00:09]} 25. Bc3 {[%emt 0:00:02]} Kh7 {[%emt 0:02:13]} 26. Qa3 {[%emt 0:01:08]} Qc6 {[%emt 0:00:20]} 27. Qa5 {[%emt 0:00:26]} Ra8 {[%emt 0:00:55]} 28. Rb2 {[%emt 0:01:18]} Kg8 {[%emt 0:00:46]} 29. Kg1 {[%emt 0:00:45]} Kh7 {[%emt 0:00:07]} 30. Rb3 {[%emt 0:00:12]} Kg8 {[%emt 0:00:15]} 31. Bb2 {[%emt 0:01:18]} Kh7 {[%emt 0:00:19]} 32. Bf1 {[%emt 0:00:17]} Ne8 {[%emt 0:01:06]} 33. Nd2 {[%emt 0:00:12]} Bc2 {[%emt 0:00:08]} 34. Bg2 {[%emt 0:00:19]} Qd6 {[%emt 0:00:43]} 35. Bxa8 {[%emt 0:00:14]} Bxb3 {[%emt 0:00:07]} 36. axb3 {[%emt 0:00:02]} Nb6 {[%emt 0:00:34]} 37. Be4+ {[%emt 0:00:07]} Kg8 {[%emt 0:00:07]} 38. Ba3 {[%emt 0:00:24]} Nd7 {[%emt 0:00:03]} 39. Bg2 {[%emt 0:00:46]} Nef6 {[%emt 0:00:06]} 40. b4 {[%emt 0:00:26]} Qxd2 {[%emt 0:00:12]} 41. Qd8+ {[%emt 0:00:12]} Kh7 {[%emt 0:00:06]} 42. bxc5 {[%emt 0:00:12]} Qe1+ {[%emt 0:00:27]} 43. Kh2 {[%emt 0:00:42]} Qxf2 {[%emt 0:00:07]} 44. c6 {[%emt 0:00:23]} Ne4 {[%emt 0:00:13]} 45. Qc7 {[%emt 0:00:04]} Nd2 {[%emt 0:00:18]} 46. cxd7 {[%emt 0:00:12]} Nf1+ {[%emt 0:00:06]} 47. Kh1 {[%emt 0:00:01]} Nxg3+ {[%emt 0:00:05]} 48. Qxg3 {[%emt 0:00:02]} Qxg3 {[%emt 0:00:05]} 49. d8=Q {[%emt 0:00:06]} Qe1+ {[%emt 0:00:03]} 50. Kh2 {[%emt 0:00:01]} Qxe2 {[%emt 0:00:03]} 51. Qd4 {[%emt 0:00:10]} g6 {[%emt 0:00:28]} 52. Bb2 {[%emt 0:00:02]} 1-0

[Event "European Women Rapid-ch 2023"]
[Site "Monaco"]
[Date "2024.01.13"]
[Round "1.22"]
[White "Nevska, Gerda"]
[Black "Hrebenshchykova, Yelyzaveta"]
[Result "0-1"]
[ECO "A36"]
[WhiteElo "1787"]
[BlackElo "2275"]
[Annotator "TA"]
[PlyCount "74"]
[EventDate "2023.12.19"]
[EventType "swiss"]
[EventCountry "MNC"]
[SourceTitle "playchess.com"]
[Source "ChessBase"]
[SourceQuality "1"]
[TimeControl "900+10"]

{[%evp 20,74,19,-8,5,-12,23,0,27,0,0,0,0,-18,8,-21,48,-20,-16,-19,20,-39,0,-1,0,-16,-10,-127,0,0,39,0,0,3,8,0,0,-17,0,-97,-87,-125,-126,-213,-151,-296,-59,-871,-862,-836,-829,-29988,-29986,-29997,-29998,-29998,-29999]} 1. c4 {[%emt 0:00:03]} Nf6 {[%emt 0:00:48]} 2. Nc3 {[%emt 0:00:03]} g6 {[%emt 0:00:02]} 3. e4 {[%emt 0:00:02]} d6 {[%emt 0:00:02]} 4. g3 {[%emt 0:00:01]} Bg7 {[%emt 0:00:19]} 5. Bg2 {[%emt 0:00:02]} O-O {[%emt 0:00:50]} 6. Nge2 {[%emt 0:00:04]} c5 {[%emt 0:01:09]} 7. O-O {[%emt 0:00:11]} Nc6 {[%emt 0:00:03]} 8. d3 {[%emt 0:00:17]} Ne8 {[%emt 0:00:35][%cal Bf6e8,Be8c7,Bc7e6][%mdl 32]} 9. Rb1 {[%emt 0:01:18]} Nc7 {[%emt 0:01:54]} 10. a3 {[%emt 0:00:31]} a5 {[%emt 0:00:02]} 11. h3 {[%emt 0:00:03]} Ne6 {[%emt 0:01:43]} 12. Nb5 {[%emt 0:03:00]} Bd7 {[%emt 0:01:07]} 13. b3 {[%emt 0:02:31]} Nc7 {[%emt 0:01:58] The position is equal.} 14. Bb2 {[%emt 0:00:23]} Nxb5 {[%emt 0:01:02]} 15. cxb5 {[%emt 0:00:18] [#] Hoping for Bxg7.} Nd4 16. a4 {[%emt 0:00:00]} Qb6 {[%emt 0:01:50]} 17. Kh2 {[%emt 0:00:00]} Be6 {[%emt 0:00:54]} ({Better is} 17... e5 $11) 18. Bxd4 {[%emt 0:00:00]} (18. Bc1 $14) 18... cxd4 $11 {[%emt 0:00:01]} 19. Nf4 {[%emt 0:00:00]} Rac8 {[%emt 0:02:05]} 20. Qf3 {[%emt 0:00:00]} (20. Nxe6 $11 fxe6 21. b4) 20... Rc7 {[%emt 0:00:26]} 21. b4 {[%emt 0:00:00]} axb4 {[%emt 0:00:42]} 22. Rxb4 {[%emt 0:00:00]} Qa5 {[%emt 0:00:14]} 23. Rfb1 {[%emt 0:00:00]} ({Don't go for} 23. Nxe6 $2 fxe6 24. Qe2 Qxb4 $19) (23. Rb2 $11) 23... b6 {[%emt 0:00:23]} ({Black should play} 23... Ba2 $17 24. R1b2 e5) 24. Qe2 {[%emt 0:00:41]} Rfc8 {[%emt 0:00:06]} 25. R1b2 {[%emt 0:00:02][%cal Oe4e5] Against Rc2} Rc5 {[%emt 0:00:38]} 26. Nxe6 {[%emt 0:00:13]} fxe6 {[%emt 0:00:01]} 27. Qg4 {[%emt 0:01:16]} Kf7 {[%emt 0:00:01]} 28. f4 {[%emt 0:00:47]} Bf6 {[%emt 0:00:04]} 29. e5 {[%emt 0:00:14]} dxe5 $17 {[%emt 0:00:08]} 30. fxe5 {[%emt 0:00:01]} Rxe5 {[%emt 0:00:01] And now ...Re3 would win.} 31. Rxd4 {[%emt 0:00:08]} (31. Be4 $17) 31... Qc3 {[%emt 0:00:11]} 32. Rf2 {[%emt 0:00:18] [#]} (32. Rdb4 $17) 32... Rf5 $2 {[%emt 0:00:08]} (32... h5 $1 $19 {[%cal Rh5g4]} 33. Rxf6+ Kxf6 (33... exf6 $2 34. Qf3 $19) 34. Qf4+ Rf5) 33. Re4 {[%emt 0:02:42][%mdl 8192] White is weak on the dark squares. This move loses the game for White.} (33. Rdf4 $15) 33... Rxf2 $19 {[%emt 0:00:11]} 34. Qxe6+ {[%emt 0:00:03]} Kg7 {[%emt 0:00:01][%cal Oc3d2] ( -> ...Qd2!)} 35. Rc4 {[%emt 0:00:03]} Rxc4 {[%emt 0:00:01] Black mates.} 36. dxc4 {[%emt 0:00:01]} Qf3 {[%emt 0:00:16][%csl Gf2][%cal Rf3g2]} 37. Qc6 {[%emt 0:00:24]} Rxg2+ {[%emt 0:00:02] Weighted Error Value: White=0.65/Black=0.32.  Loses game:     	White=1     	---        Missed win:     	---       	Black=1      Mistake:       	White=6     	Black=2      Inaccurate:     	White=4     	Black=6      OK:         	White=3     	Black=5      Best:        	White=1     	Black=2} 0-1

[Event "European Women Rapid-ch 2023"]
[Site "Monaco"]
[Date "2024.01.13"]
[Round "1.23"]
[White "Schulze, Lara"]
[Black "Alfano, Emilie"]
[Result "1-0"]
[ECO "C30"]
[WhiteElo "2285"]
[BlackElo "1828"]
[Annotator "RC"]
[PlyCount "63"]
[EventDate "2023.12.19"]
[EventType "swiss"]
[EventCountry "MNC"]
[SourceTitle "playchess.com"]
[Source "ChessBase"]
[SourceQuality "1"]
[TimeControl "900+10"]

1. e4 {[%emt 0:00:01]} e5 {[%emt 0:00:01]} 2. Nc3 {[%emt 0:00:03]} Nf6 {[%emt 0:00:01]} 3. Bc4 {[%emt 0:00:01]} Bc5 {[%emt 0:00:03]} 4. d3 {[%emt 0:00:08]} Nc6 {[%emt 0:00:16]} 5. f4 {[%emt 0:00:05]} d6 {[%emt 0:00:10]} 6. Nf3 {[%emt 0:00:06]} a6 {[%emt 0:00:12]} 7. Nd5 {[%emt 0:00:12]} Bg4 {[%emt 0:01:03]} 8. c3 {[%emt 0:02:13]} O-O {[%emt 0:01:24]} 9. h3 {[%emt 0:00:35]} Bxf3 {[%emt 0:00:14]} 10. Qxf3 {[%emt 0:00:05]} Nxd5 {[%emt 0:03:16]} 11. Bxd5 {[%emt 0:00:19]} Kh8 {[%emt 0:00:18]} 12. f5 {[%emt 0:00:37]} Rb8 {[%emt 0:00:42]} 13. h4 {[%emt 0:02:41]} Ne7 {[%emt 0:00:26]} 14. Bg5 {[%emt 0:00:27]} f6 {[%emt 0:00:37]} 15. Be6 {[%emt 0:01:55]} c6 {[%emt 0:02:34]} 16. Be3 {[%emt 0:01:55]} Bxe3 {[%emt 0:00:18]} 17. Qxe3 {[%emt 0:00:03]} d5 {[%emt 0:00:18]} 18. Qe2 {[%emt 0:01:35]} g6 {[%emt 0:01:37]} 19. g4 {[%emt 0:00:26]} Qd6 {[%emt 0:00:54]} 20. O-O-O {[%emt 0:00:29]} d4 {[%emt 0:00:36]} 21. c4 {[%emt 0:00:52]} b5 {[%emt 0:00:06]} 22. g5 {[%emt 0:00:12]} bxc4 {[%emt 0:00:32]} 23. dxc4 {[%emt 0:00:24]} c5 {[%emt 0:00:46]} 24. Kb1 {[%emt 0:01:26]} a5 {[%emt 0:00:16]} 25. Qg4 {[%emt 0:00:36]} Qb6 {[%emt 0:01:07]} 26. Rh2 {[%emt 0:00:05]} Qd8 {[%emt 0:00:19]} 27. h5 {[%emt 0:00:21]} gxf5 {[%emt 0:00:37]} 28. exf5 {[%emt 0:00:02]} fxg5 {[%emt 0:00:54]} 29. h6 {[%emt 0:00:16]} Ra8 {[%emt 0:00:11]} 30. Rh5 {[%emt 0:00:13]} Qe8 {[%emt 0:00:09]} 31. Qxg5 {[%emt 0:00:14]} Rg8 {[%emt 0:00:12]} 32. Qf6+ {[%emt 0:00:05]} 1-0